fUSD/lending_fUSD_20260401
["ID","MTS","AMOUNT","RATE_DAILY","PERIOD"]
[419252241,1775055042699,-260.86933,0.0001314,2]
[419252243,1775055042708,-160.0,0.0001314,2]
[419252245,1775055042718,-395.247078,0.0001314,2]
[419252248,1775055042733,-630.494157,0.0001314,2]
[419252250,1775055042743,-160.0,0.0001314,2]
[419252251,1775055042753,-211.590722,0.0001314,2]
[419252253,1775055042763,-263.181445,0.0001314,2]
[419252255,1775055042774,-166.66,0.0001321,2]
[419252256,1775055042784,-155.0,0.0001327,2]
[419252257,1775055042794,-11640.66419491,0.00013281,2]
[419252258,1775055042804,-1516.8516926,0.00013281,2]
[419252259,1775055042813,-823.0,0.00013294,2]
[419252260,1775055042823,-319.40216955,0.00013308,2]
[419252261,1775055042833,-8035.07121949,0.00013308,2]
[419252262,1775055042843,-521.0,0.00013323,5]
[419252263,1775055042853,-698.0,0.00013323,5]
[419252264,1775055042864,-243775.884502,0.00013408,2]
[419252265,1775055042873,-2071.1902571,0.00013408,2]
[419252267,1775055042883,-177812.9733451,0.00013408,2]
[419252268,1775055042892,-13401.5372439,0.00013408,2]
[419252270,1775055042902,-151.0,0.00013408,2]
[419252272,1775055042912,-151.0,0.00013408,2]
[419252273,1775055042921,-296.641659,0.00013408,2]
[419252274,1775055042931,-151.0,0.00013408,2]
[419252275,1775055042941,-151.0,0.00013408,2]
[419252276,1775055042951,-608.067946,0.00013408,2]
[419252277,1775055042960,-608.067946,0.00013408,2]
[419252278,1775055042970,-608.067946,0.00013408,2]
[419252279,1775055042979,-608.067946,0.00013408,2]
[419252280,1775055042991,-151.0,0.00013408,2]
[419252281,1775055043000,-151.0,0.00013408,2]
[419252282,1775055043010,-151.0,0.00013408,2]
[419252283,1775055043020,-251.335443,0.00013408,2]
[419252284,1775055043029,-151.0,0.00013408,2]
[419252285,1775055043040,-151.0,0.00013408,2]
[419252286,1775055043050,-151.0,0.00013408,2]
[419252287,1775055043060,-270.664937,0.00013408,2]
[419252288,1775055043070,-270.664937,0.00013408,2]
[419252289,1775055043081,-270.664937,0.00013408,2]
[419252290,1775055043091,-270.664937,0.00013408,2]
[419252291,1775055043101,-151.0,0.00013408,2]
[419252292,1775055043112,-151.0,0.00013408,2]
[419252293,1775055043122,-4123.0365798,0.00013409,2]
[419252294,1775055043132,-3240.0,0.00013425,2]
[419252295,1775055043142,-151.0,0.00013488,2]
[419252296,1775055043152,-151.0,0.00013489,2]
[419252297,1775055043162,-422.54235729,0.00013494,2]
[419252298,1775055043172,-232.70057797,0.00013547,2]
[419252299,1775055043182,-187.30439193,0.00013547,2]
[419252300,1775055043192,-310.35,0.00013551,2]
[419252301,1775055043202,-1600.0,0.00013563,2]
[419252302,1775055043212,-13468.0,0.00013671,2]
[419252303,1775055043222,-9008.32,0.00013688,2]
[419252304,1775055043233,-4767.18,0.00013688,2]
[419252305,1775055043245,-500.0,0.00013698,2]
[419252306,1775055043256,-500.0,0.00013698,2]
[419252307,1775055043266,-500.0,0.00013698,2]
[419252308,1775055043277,-496.70449516,0.00013698,2]
[419252309,1775055043287,-500.0,0.00013698,2]
[419252310,1775055043297,-209.19964138,0.00013698,2]
[419252311,1775055043307,-500.0,0.00013698,2]
[419252313,1775055043317,-500.0,0.00013698,2]
[419252315,1775055043327,-150.0,0.00013699,2]
[419252316,1775055043337,-2738.29,0.00013699,2]
[419252317,1775055043347,-200.0,0.00013699,2]
[419252318,1775055043356,-166.66,0.00013699,2]
[419252320,1775055043367,-459.440195,0.00013699,2]
[419252321,1775055043377,-459.440195,0.00013699,2]
[419252322,1775055043387,-459.440195,0.00013699,2]
[419252323,1775055043397,-459.440195,0.00013699,2]
[419252324,1775055043407,-151.0,0.00013699,2]
[419252325,1775055043417,-151.0,0.00013699,2]
[419252327,1775055043427,-151.0,0.00013699,2]
[419252329,1775055043436,-151.0,0.00013699,2]
[419252331,1775055043446,-200.0,0.00013699,5]
[419252333,1775055043456,-200.0,0.00013699,5]
[419252334,1775055043468,-200.0,0.00013699,5]
[419252335,1775055043479,-193.040741,0.00013699,5]
[419252338,1775055043491,-500.0,0.00013699,2]
[419252339,1775055043501,-500.0,0.00013699,2]
[419252340,1775055043511,-500.0,0.00013699,2]
[419252341,1775055043521,-500.0,0.00013699,2]
[419252342,1775055043531,-418.05622523,0.00013699,2]
[419252343,1775055043541,-500.0,0.00013699,2]
[419252344,1775055043551,-502.46451115,0.00013699,2]
[419252345,1775055043561,-500.37557038,0.00013699,2]
[419252346,1775055043571,-500.0,0.00013699,2]
[419252347,1775055043582,-1069.53,0.00013699,2]
[419252348,1775055043592,-4999.99,0.00013699,2]
[419252349,1775055043601,-33288.98,0.00013699,2]
[419252351,1775055043611,-9999.99,0.00013699,2]
[419252352,1775055043620,-299.99,0.00013699,2]
[419252353,1775055043948,-9999.99,0.00013699,2]
[419252354,1775055044005,-999.99,0.00013699,2]
[419252355,1775055044015,-150.99,0.00013699,2]
[419252356,1775055044025,-150.99,0.00013699,2]
[419252357,1775055044035,-500.0,0.00013699,2]
[419252358,1775055044044,-500.0,0.00013699,2]
[419252359,1775055044055,-500.0,0.00013699,2]
[419252360,1775055044065,-500.0,0.00013699,2]
[419252361,1775055044074,-500.0,0.00013699,2]
[419252362,1775055044084,-275.71340123,0.00013699,2]
[419252363,1775055044094,-500.0,0.00013699,2]
[419252364,1775055044104,-500.0,0.00013699,2]
[419252366,1775055044114,-358.49657185,0.00013699,2]
[419252367,1775055044124,-500.0,0.00013699,2]
[419252368,1775055044134,-500.0,0.00013699,2]
[419252369,1775055044143,-500.84806746,0.00013699,2]
[419252370,1775055044151,-500.0,0.00013699,2]
[419252371,1775055044160,-500.0,0.00013699,2]
[419252372,1775055044170,-502.3938553,0.00013699,2]
[419252373,1775055044178,-452.97866013,0.00013699,2]
[419252374,1775055044188,-312.57026801,0.00013699,2]
[419252375,1775055044197,-500.0,0.00013699,2]
[419252376,1775055044208,-500.0,0.00013699,2]
[419252377,1775055044218,-500.0,0.00013699,2]
[419252378,1775055044228,-500.0,0.00013699,2]
[419252379,1775055044238,-153.0,0.00013699,2]
[419252380,1775055044248,-153.0,0.00013699,2]
[419252381,1775055044258,-153.0,0.00013699,2]
[419252382,1775055044267,-169.65,0.00013699,2]
[419252384,1775055044276,-151.0,0.00013699,2]
[419252386,1775055044287,-151.0,0.00013699,2]
[419252387,1775055044296,-151.0,0.00013699,2]
[419252388,1775055044307,-151.0,0.00013699,2]
[419252389,1775055044316,-608.067946,0.00013699,2]
[419252390,1775055044326,-608.067946,0.00013699,2]
[419252391,1775055044337,-608.067946,0.00013699,2]
[419252392,1775055044346,-608.067946,0.00013699,2]
[419252393,1775055044357,-151.0,0.00013699,2]
[419252394,1775055044368,-151.0,0.00013699,2]
[419252395,1775055044377,-151.0,0.00013699,2]
[419252396,1775055044388,-151.0,0.00013699,2]
[419252397,1775055044398,-151.0,0.00013699,2]
[419252398,1775055044407,-500.0,0.00013699,2]
[419252399,1775055044417,-326.97196373,0.00013699,2]
[419252400,1775055044426,-500.0,0.00013745,2]
[419252401,1775055044435,-500.0,0.00013745,2]
[419252402,1775055044444,-487.27760899,0.00013745,2]
[419252403,1775055044453,-296.58686,0.00013797,7]
[419252404,1775055044462,-644.308511,0.00013797,7]
[419252405,1775055044471,-538.973288,0.00013797,7]
[419252406,1775055044481,-288.532803,0.00013797,7]
[419252407,1775055044491,-1516.8516926,0.00013805,2]
[419252408,1775055044501,-166.66,0.00013836,2]
[419252409,1775055044511,-151.0,0.00013851,2]
[419252410,1775055044520,-151.0,0.00013851,2]
[419252411,1775055044529,-151.0,0.00013851,2]
[419252412,1775055044538,-270.664937,0.00013851,2]
[419252413,1775055044547,-270.664937,0.00013851,2]
[419252414,1775055044557,-270.664937,0.00013851,2]
[419252415,1775055044565,-270.664937,0.00013851,2]
[419252416,1775055044574,-443.57666659,0.00013896,2]
[419252417,1775055044583,-526.12275523,0.00013924,2]
[419252418,1775055044593,-5763.37347454,0.00013927,2]
[419252419,1775055044602,-168.26,0.0001396,2]
[419252420,1775055044611,-166.66,0.00013973,2]
[419252421,1775055044620,-2000.0,0.00014,2]
[419252422,1775055044630,-1032.93729294,0.00014056,2]
[419252423,1775055044639,-178.2168563,0.00014079,2]
[419252424,1775055044648,-166.66,0.0001411,2]
[419252425,1775055044657,-151.0,0.0001418,2]
[419252426,1775055044667,-2000.0,0.000142,2]
[419252427,1775055044676,-168.27,0.00014228,2]
[419252428,1775055044685,-166.66,0.00014247,2]
[419252429,1775055044694,-1000.0,0.00014247,2]
[419252430,1775055044704,-1000.0,0.00014247,2]
[419252431,1775055044713,-500.0,0.00014247,2]
[419252432,1775055044722,-1000.0,0.00014247,2]
[419252433,1775055044732,-1000.0,0.00014247,2]
[419252434,1775055044742,-1000.0,0.00014247,2]
[419252435,1775055044751,-500.0,0.00014247,2]
[419252436,1775055044761,-264.52314394,0.00014247,2]
[419252437,1775055044770,-1000.0,0.00014247,2]
[419252438,1775055044781,-1000.0,0.00014247,2]
[419252439,1775055044790,-509.88873086,0.00014247,2]
[419252440,1775055044799,-459.440195,0.00014247,2]
[419252441,1775055044808,-459.440195,0.00014247,2]
[419252442,1775055044818,-459.440195,0.00014247,2]
[419252443,1775055044827,-459.440195,0.00014247,2]
[419252444,1775055044836,-151.0,0.00014255,2]
[419252445,1775055044846,-828.89,0.00014258,2]
[419252446,1775055044855,-699.36,0.00014258,2]
[419252447,1775055044865,-6979.65,0.00014258,2]
[419252448,1775055044874,-156.50233425,0.00014301,2]
[419252449,1775055044884,-310.35,0.00014304,2]
[419252450,1775055044895,-234.75350137,0.00014308,2]
[419252451,1775055044905,-1516.8516926,0.00014329,2]
[419252452,1775055044915,-174.61919141,0.0001434,2]
[419252453,1775055044925,-500.0,0.0001434,2]
[419252454,1775055044935,-500.0,0.0001434,2]
[419252455,1775055044944,-500.0,0.0001434,2]
[419252456,1775055044954,-500.0,0.0001434,2]
[419252457,1775055044963,-500.0,0.0001434,2]
[419252458,1775055044972,-500.0,0.0001434,2]
[419252459,1775055044982,-500.0,0.0001434,2]
[419252460,1775055044992,-500.0,0.0001434,2]
[419252461,1775055045001,-500.0,0.0001434,2]
[419252462,1775055045011,-500.0,0.0001434,2]
[419252463,1775055045020,-500.0,0.0001434,2]
[419252464,1775055045029,-500.0,0.0001434,2]
[419252465,1775055045038,-200.0,0.0001434,2]
[419252466,1775055045047,-500.0,0.0001434,2]
[419252467,1775055045056,-500.0,0.0001434,2]
[419252468,1775055045065,-500.0,0.0001434,2]
[419252469,1775055045074,-500.0,0.0001434,2]
[419252470,1775055045083,-500.0,0.0001434,2]
[419252471,1775055045092,-500.0,0.0001434,2]
[419252472,1775055045101,-500.0,0.0001434,2]
[419252473,1775055045110,-500.0,0.0001434,2]
[419252474,1775055045119,-500.0,0.0001434,2]
[419252475,1775055045128,-500.0,0.0001434,2]
[419252476,1775055045139,-578.20924308,0.0001434,2]
[419252477,1775055045149,-500.0,0.0001434,2]
[419252478,1775055045158,-201.93286099,0.0001434,2]
[419252479,1775055045168,-500.0,0.0001434,2]
[419252480,1775055045177,-500.0,0.0001434,2]
[419252481,1775055045186,-500.0,0.0001434,2]
[419252482,1775055045196,-500.0,0.0001434,2]
[419252483,1775055045205,-500.0,0.0001434,2]
[419252484,1775055045215,-500.0,0.0001434,2]
[419252485,1775055045224,-500.0,0.0001434,2]
[419252486,1775055045234,-500.0,0.0001434,2]
[419252487,1775055045243,-500.0,0.0001434,2]
[419252488,1775055045253,-1377.42282659,0.0001434,2]
[419252489,1775055045263,-500.0,0.0001434,2]
[419252490,1775055045273,-500.0,0.0001434,2]
[419252491,1775055045283,-500.0,0.0001434,2]
[419252492,1775055045295,-500.0,0.0001434,2]
[419252493,1775055045304,-500.0,0.0001434,2]
[419252494,1775055045315,-151.0,0.0001434,2]
[419252495,1775055045326,-200.0,0.0001434,2]
[419252496,1775055045337,-250.0,0.0001434,2]
[419252497,1775055045348,-250.0,0.0001434,2]
[419252498,1775055045357,-250.0,0.0001434,2]
[419252499,1775055045367,-250.0,0.0001434,2]
[419252500,1775055045377,-250.0,0.0001434,2]
[419252501,1775055045386,-250.0,0.0001434,2]
[419252502,1775055045396,-250.0,0.0001434,2]
[419252503,1775055045406,-250.0,0.0001434,2]
[419252504,1775055045415,-250.0,0.0001434,2]
[419252505,1775055045425,-250.0,0.0001434,2]
[419252506,1775055045434,-250.0,0.0001434,2]
[419252507,1775055045443,-250.0,0.0001434,2]
[419252508,1775055045453,-500.0,0.0001434,2]
[419252509,1775055045462,-500.0,0.0001434,2]
[419252510,1775055045471,-262.90206542,0.0001434,2]
[419252511,1775055045481,-500.0,0.0001434,2]
[419252512,1775055045490,-500.0,0.0001434,2]
[419252513,1775055045500,-500.0,0.0001434,2]
[419252514,1775055045510,-743.50770149,0.0001434,2]
[419252515,1775055045519,-279.9045709,0.0001434,2]
[419252516,1775055045528,-1755.29204767,0.0001436,2]
[419252517,1775055045538,-2738.29,0.00014384,2]
[419252518,1775055045548,-166.66,0.00014384,2]
[419252519,1775055045558,-2369.8254148,0.00014391,2]
[419252520,1775055045568,-1553.8096858,0.00014392,2]
[419252521,1775055045579,-500.0,0.00014395,2]
[419252522,1775055045588,-151.0,0.00014395,2]
[419252523,1775055045597,-272.62944185,0.00014395,2]
[419252524,1775055045607,-246.2297,0.000144,12]
[419252525,1775055045617,-151.0,0.000144,2]
[419252526,1775055045626,-151.0,0.000144,2]
[419252527,1775055045636,-2000.0,0.000144,2]
[419252528,1775055045645,-500.0,0.0001445,2]
[419252529,1775055045655,-151.0,0.0001445,2]
[419252530,1775055045664,-282.71673119,0.0001445,2]
[419252531,1775055045674,-283.76,0.00014462,2]
[419252532,1775055045684,-155.0,0.00014477,2]
[419252533,1775055045693,-2000.0,0.000145,2]
[419252534,1775055045703,-500.0,0.00014505,2]
[419252535,1775055045712,-151.0,0.00014505,2]
[419252536,1775055045722,-293.17725025,0.00014505,2]
[419252537,1775055045731,-410.0,0.00014556,2]
[419252538,1775055045741,-500.0,0.0001456,2]
[419252539,1775055045751,-151.0,0.0001456,2]
[419252540,1775055045760,-304.02480851,0.0001456,2]
[419252541,1775055045769,-5763.37347454,0.00014585,2]
[419252542,1775055045780,-2000.0,0.000146,2]
[419252543,1775055045790,-410.0,0.00014614,2]
[419252544,1775055045800,-651.0,0.00014615,5]
[419252545,1775055045809,-500.0,0.00014615,2]
[419252546,1775055045818,-151.0,0.00014615,2]
[419252547,1775055045828,-315.27372642,0.00014615,2]
[419252548,1775055045838,-1131.0,0.00014623,2]
[419252549,1775055045848,-410.0,0.00014626,2]
[419252550,1775055045857,-160.0,0.00014641,2]
[419252551,1775055045867,-160.0,0.00014641,2]
[419252552,1775055045876,-201.92639552,0.00014659,2]
[419252553,1775055045886,-187.15178699,0.0001466,2]
[419252554,1775055045895,-500.0,0.0001467,2]
[419252555,1775055045905,-151.0,0.0001467,2]
[419252556,1775055045915,-326.9388543,0.0001467,2]
[419252557,1775055045924,-500.0,0.00014679,2]
[419252558,1775055045934,-500.0,0.00014679,2]
[419252559,1775055045943,-500.0,0.00014679,2]
[419252560,1775055045953,-500.0,0.00014679,2]
[419252561,1775055045963,-500.0,0.00014679,2]
[419252562,1775055045972,-500.0,0.00014679,2]
[419252563,1775055045981,-500.0,0.00014679,2]
[419252564,1775055045991,-500.0,0.00014679,2]
[419252565,1775055046001,-500.0,0.00014679,2]
[419252566,1775055046011,-500.0,0.00014679,2]
[419252567,1775055046020,-603.82,0.00014679,2]
[419252568,1775055046029,-2136.74,0.00014679,2]
[419252569,1775055046039,-2136.74,0.00014679,2]
[419252570,1775055046049,-2136.74,0.00014679,2]
[419252571,1775055046058,-2136.74,0.00014679,2]
[419252572,1775055046068,-2136.74,0.00014679,2]
[419252573,1775055046077,-2136.74,0.00014679,2]
[419252574,1775055046087,-500.0,0.00014725,2]
[419252575,1775055046096,-151.0,0.00014725,2]
[419252576,1775055046106,-339.03559191,0.00014725,2]
[419252577,1775055046115,-243775.884502,0.00014751,2]
[419252578,1775055046124,-2071.1902571,0.00014751,2]
[419252579,1775055046133,-177812.9733451,0.00014751,2]
[419252580,1775055046143,-13401.5372439,0.00014751,2]
[419252581,1775055046152,-151.0,0.00014751,2]
[419252582,1775055046161,-151.0,0.00014751,2]
[419252583,1775055046170,-151.0,0.00014751,2]
[419252584,1775055046180,-151.0,0.00014751,2]
[419252585,1775055046189,-459.440195,0.00014751,2]
[419252586,1775055046198,-459.440195,0.00014751,2]
[419252587,1775055046207,-459.440195,0.00014751,2]
[419252589,1775055046216,-459.440195,0.00014751,2]
[419252591,1775055046226,-151.0,0.00014751,2]
[419252593,1775055046235,-151.0,0.00014751,2]
[419252595,1775055046244,-151.0,0.00014751,2]
[419252597,1775055046253,-151.0,0.00014751,2]
[419252599,1775055046263,-608.067946,0.00014751,2]
[419252601,1775055046272,-608.067946,0.00014751,2]
[419252603,1775055046281,-608.067946,0.00014751,2]
[419252604,1775055046291,-608.067946,0.00014751,2]
[419252605,1775055046300,-151.0,0.00014751,2]
[419252606,1775055046310,-151.0,0.00014751,2]
[419252607,1775055046319,-151.0,0.00014751,2]
[419252608,1775055046329,-151.0,0.00014751,2]
[419252609,1775055046338,-151.0,0.00014751,2]
[419252610,1775055046347,-151.0,0.00014751,2]
[419252611,1775055046357,-270.664937,0.00014751,2]
[419252612,1775055046367,-270.664937,0.00014751,2]
[419252613,1775055046378,-270.664937,0.00014751,2]
[419252614,1775055046389,-270.664937,0.00014751,2]
[419252615,1775055046398,-151.0,0.00014751,2]
[419252616,1775055046408,-151.0,0.00014751,2]
[419252617,1775055046417,-4123.0365798,0.00014752,2]
[419252618,1775055046426,-1355.434,0.00014755,2]
[419252619,1775055046437,-1045.0,0.00014755,2]
[419252620,1775055046446,-3519.0,0.00014755,2]
[419252621,1775055046456,-626.633,0.00014755,2]
[419252622,1775055046465,-150.351,0.00014755,2]
[419252623,1775055046475,-1263.0,0.00014755,2]
[419252624,1775055046486,-3767.0,0.00014755,2]
[419252625,1775055046495,-415.0,0.00014755,2]
[419252626,1775055046504,-6016.0,0.00014755,2]
[419252627,1775055046513,-500.0,0.0001478,2]
[419252628,1775055046523,-151.0,0.0001478,2]
[419252629,1775055046533,-242.66651533,0.00014789,2]
[419252630,1775055046542,-751.59464626,0.00014795,2]
[419252631,1775055046551,-1000.0,0.00014795,2]
[419252632,1775055046561,-1000.0,0.00014795,2]
[419252633,1775055046573,-1500.0,0.00014795,2]
[419252634,1775055046582,-332.58486862,0.00014795,2]
[419252635,1775055046592,-1380.70129313,0.00014795,2]
[419252636,1775055046604,-182.51086849,0.00014795,2]
[419252637,1775055046614,-500.0,0.00014835,2]
[419252638,1775055046624,-151.0,0.00014835,2]
[419252639,1775055046633,-1516.8516926,0.00014852,2]
[419252640,1775055046643,-151.0,0.00014855,2]
[419252641,1775055046653,-151.0,0.00014857,2]
[419252642,1775055046664,-319.40216955,0.0001487,2]
[419252643,1775055046676,-181.08010149,0.00014888,2]
[419252644,1775055046687,-200.0,0.00014888,2]
[419252645,1775055046697,-209.40437684,0.00014888,2]
[419252646,1775055046707,-1428.38747117,0.00014888,2]
[419252647,1775055046717,-200.0,0.00014888,2]
[419252648,1775055046728,-771.01748645,0.00014888,2]
[419252649,1775055046738,-290.26104003,0.00014888,2]
[419252650,1775055046747,-500.0,0.0001489,2]
[419252651,1775055046758,-151.0,0.0001489,2]
[419252652,1775055046768,-528.7795243,0.0001491,2]
[419252653,1775055046779,-346.701804,0.00014911,2]
[419252654,1775055046788,-500.0,0.00014945,2]
[419252655,1775055046798,-151.0,0.00014945,2]
[419252656,1775055046808,-168.0,0.00014951,2]
[419252657,1775055046817,-500.0,0.00014999,2]
[419252658,1775055046827,-2136.74,0.00014999,2]
[419252659,1775055046836,-500.0,0.00015,2]
[419252660,1775055046845,-500.0,0.00015,2]
[419252661,1775055046855,-500.0,0.00015,2]
[419252662,1775055046864,-500.0,0.00015,2]
[419252663,1775055046874,-500.0,0.00015,2]
[419252664,1775055046884,-500.0,0.00015,2]
[419252665,1775055046894,-500.0,0.00015,2]
[419252667,1775055046903,-500.0,0.00015,2]
[419252669,1775055046912,-500.0,0.00015,2]
[419252670,1775055046921,-500.0,0.00015,2]
[419252672,1775055046930,-500.0,0.00015,2]
[419252673,1775055046939,-500.0,0.00015,2]
[419252674,1775055046949,-500.0,0.00015,2]
[419252675,1775055046959,-500.0,0.00015,2]
[419252676,1775055046969,-500.0,0.00015,2]
[419252677,1775055046978,-500.0,0.00015,2]
[419252678,1775055046988,-500.0,0.00015,2]
[419252679,1775055046997,-500.0,0.00015,2]
[419252680,1775055047007,-500.0,0.00015,2]
[419252681,1775055047016,-500.0,0.00015,2]
[419252682,1775055047026,-500.0,0.00015,2]
[419252683,1775055047035,-500.0,0.00015,2]
[419252684,1775055047044,-500.0,0.00015,2]
[419252685,1775055047053,-500.0,0.00015,2]
[419252686,1775055047063,-500.0,0.00015,2]
[419252687,1775055047071,-500.0,0.00015,2]
[419252688,1775055047081,-500.0,0.00015,2]
[419252689,1775055047090,-500.0,0.00015,2]
[419252690,1775055047099,-500.0,0.00015,2]
[419252691,1775055047109,-500.0,0.00015,2]
[419252693,1775055047118,-500.0,0.00015,2]
[419252694,1775055047127,-500.0,0.00015,2]
[419252695,1775055047137,-500.0,0.00015,2]
[419252696,1775055047145,-500.0,0.00015,2]
[419252697,1775055047155,-500.0,0.00015,2]
[419252698,1775055047163,-500.0,0.00015,2]
[419252699,1775055047173,-500.0,0.00015,2]
[419252700,1775055047182,-500.0,0.00015,2]
[419252701,1775055047191,-500.0,0.00015,2]
[419252702,1775055047200,-500.0,0.00015,2]
[419252703,1775055047208,-264.73,0.00015,2]
[419252704,1775055047218,-500.0,0.00015,2]
[419252705,1775055047227,-500.0,0.00015,2]
[419252706,1775055047236,-500.0,0.00015,2]
[419252707,1775055047245,-500.0,0.00015,2]
[419252708,1775055047255,-500.0,0.00015,2]
[419252709,1775055047264,-500.0,0.00015,2]
[419252710,1775055047274,-500.0,0.00015,2]
[419252711,1775055047283,-500.0,0.00015,2]
[419252712,1775055047293,-500.0,0.00015,2]
[419252713,1775055047304,-500.0,0.00015,2]
[419252714,1775055047315,-500.0,0.00015,2]
[419252715,1775055047324,-500.0,0.00015,2]
[419252716,1775055047335,-500.0,0.00015,2]
[419252717,1775055047346,-500.0,0.00015,2]
[419252718,1775055047356,-500.0,0.00015,2]
[419252719,1775055047365,-500.0,0.00015,2]
[419252720,1775055047375,-500.0,0.00015,2]
[419252721,1775055047385,-500.0,0.00015,2]
[419252722,1775055047394,-500.0,0.00015,2]
[419252723,1775055047404,-500.0,0.00015,2]
[419252724,1775055047413,-500.0,0.00015,2]
[419252725,1775055047423,-500.0,0.00015,2]
[419252726,1775055047432,-500.0,0.00015,2]
[419252727,1775055047441,-500.0,0.00015,2]
[419252728,1775055047450,-500.0,0.00015,2]
[419252729,1775055047459,-500.0,0.00015,2]
[419252730,1775055047468,-520.06,0.00015,2]
[419252731,1775055047477,-500.0,0.00015,2]
[419252732,1775055047486,-500.0,0.00015,2]
[419252733,1775055047496,-500.0,0.00015,6]
[419252734,1775055047505,-14193.25412751,0.00015,7]
[419252735,1775055047514,-300.0,0.00015,2]
[419252736,1775055047524,-151.0,0.00015,2]
[419252737,1775055047533,-151.0,0.00015,2]
[419252738,1775055047542,-160.0,0.00015,2]
[419252739,1775055047551,-2000.0,0.00015,2]
[419252740,1775055047561,-410.0,0.00015027,2]
[419252741,1775055047570,-3178.13,0.00015057,2]
[419252742,1775055047580,-310.35,0.00015057,2]
[419252743,1775055047590,-608.067946,0.00015057,2]
[419252744,1775055047599,-608.067946,0.00015057,2]
[419252745,1775055047608,-608.067946,0.00015057,2]
[419252746,1775055047617,-608.067946,0.00015057,2]
[419252747,1775055047627,-151.0,0.00015057,2]
[419252748,1775055047636,-151.0,0.00015057,2]
[419252749,1775055047645,-151.0,0.00015057,2]
[419252750,1775055047654,-151.0,0.00015068,2]
[419252751,1775055047664,-151.0,0.00015068,2]
[419252752,1775055047673,-151.0,0.00015068,2]
[419252753,1775055047683,-151.0,0.00015068,2]
[419252754,1775055047693,-151.0,0.00015068,2]
[419252755,1775055047703,-151.0,0.00015068,2]
[419252756,1775055047713,-2738.29,0.00015068,2]
[419252757,1775055047722,-677.95,0.00015068,2]
[419252758,1775055047732,-168.0,0.00015084,2]
[419252759,1775055047741,-500.0,0.000151,6]
[419252760,1775055047750,-459.440195,0.000151,2]
[419252761,1775055047759,-459.440195,0.000151,2]
[419252762,1775055047768,-459.440195,0.000151,2]
[419252763,1775055047778,-459.440195,0.000151,2]
[419252764,1775055047787,-335.040426,0.00015111,7]
[419252765,1775055047796,-280.26611,0.00015111,7]
[419252766,1775055047805,-151.0,0.0001515,2]
[419252767,1775055047814,-151.0,0.0001515,2]
[419252768,1775055047823,-151.0,0.0001515,2]
[419252769,1775055047832,-270.664937,0.0001515,2]
[419252770,1775055047842,-270.664937,0.0001515,2]
[419252771,1775055047851,-270.664937,0.0001515,2]
[419252772,1775055047860,-270.664937,0.0001515,2]
[419252773,1775055047870,-3972.22,0.0001515,2]
[419252774,1775055047879,-322.07222032,0.000152,2]
[419252775,1775055047889,-500.0,0.000152,6]